fUST/lending_fUST_20250210
["ID","MTS","AMOUNT","RATE_DAILY","PERIOD"]
[352608845,1739196645915,-500.0,0.00012191,2]
[352608847,1739196645926,-1030.08,0.00012191,2]
[352608848,1739196645936,-5594.46,0.00012191,2]
[352608849,1739196645946,-551.54,0.00012191,2]
[352608850,1739196645957,-663.83,0.00012191,2]
[352608851,1739196645969,-500.0,0.00012191,2]
[352608852,1739196645979,-1381.6,0.00012191,2]
[352608853,1739196645989,-500.0,0.00012191,2]
[352608854,1739196645999,-2401.0,0.00012191,2]
[352608855,1739196646009,-500.0,0.00012191,2]
[352608856,1739196646020,-2641.54523132,0.000122,2]
[352608857,1739196646030,-13074.96087049,0.00012239,2]
[352608859,1739196646041,-501.0,0.00012328,2]
[352608861,1739196646051,-585.23,0.00012328,2]
[352608863,1739196646061,-582.26,0.00012328,2]
[352608865,1739196646071,-500.0,0.00012328,2]
[352608867,1739196646082,-500.0,0.00012328,2]
[352608869,1739196646091,-682.54,0.00012328,2]
[352608871,1739196646101,-500.0,0.00012328,2]
[352608873,1739196646111,-508.22,0.00012328,2]
[352608874,1739196646121,-500.0,0.00012328,2]
[352608875,1739196646131,-500.0,0.00012328,2]
[352608877,1739196646140,-429.41998487,0.00012328,2]
[352608878,1739196646149,-500.0,0.00012328,2]
[352608880,1739196646159,-500.0,0.00012328,2]
[352608881,1739196646168,-11703.93,0.00012328,2]
[352608882,1739196646178,-711.7,0.00012328,2]
[352608883,1739196646188,-556.41,0.00012328,2]
[352608884,1739196646198,-513.93,0.00012328,2]
[352608885,1739196646207,-500.0,0.00012328,2]
[352608886,1739196646216,-500.0,0.00012328,2]
[352608887,1739196646226,-1065.28,0.00012328,2]
[352608888,1739196646236,-4941.04,0.00012328,2]
[352608889,1739196646245,-500.0,0.00012328,2]
[352608890,1739196646255,-560.29,0.00012328,2]
[352608891,1739196646264,-1829.09,0.00012328,2]
[352608892,1739196646274,-500.0,0.00012328,2]
[352608894,1739196646284,-500.0,0.00012328,2]
[352608896,1739196646293,-500.0,0.00012328,2]
[352608898,1739196646304,-503.07,0.00012328,2]
[352608899,1739196646313,-500.0,0.00012328,2]
[352608900,1739196646323,-2461.35,0.00012328,2]
[352608901,1739196646333,-1052.97,0.00012328,2]
[352608903,1739196646343,-500.0,0.00012328,2]
[352608904,1739196646353,-500.0,0.00012328,2]
[352608905,1739196646362,-1295.12,0.00012328,2]
[352608906,1739196646372,-500.0,0.00012328,2]
[352608907,1739196646382,-500.0,0.00012328,2]
[352608908,1739196646391,-1187.4,0.00012328,2]
[352608909,1739196646515,-590.74,0.00012328,2]
[352608911,1739196646527,-500.0,0.00012328,2]
[352608913,1739196646537,-1398.28,0.00012328,2]
[352608915,1739196646547,-500.0,0.00012328,2]
[352608916,1739196646557,-500.0,0.00012328,2]
[352608917,1739196646566,-1030.08,0.00012328,2]
[352608918,1739196646576,-5594.46,0.00012328,2]
[352608919,1739196646586,-551.54,0.00012328,2]
[352608920,1739196646595,-663.83,0.00012328,2]
[352608921,1739196646605,-1381.6,0.00012328,2]
[352608922,1739196646615,-500.0,0.00012328,2]
[352608923,1739196646624,-2401.0,0.00012328,2]
[352608924,1739196646634,-500.0,0.00012328,2]
[352608925,1739196646644,-502.27251224,0.00012348,2]
[352608926,1739196646653,-1000.0,0.00012348,2]
[352608927,1739196646663,-1000.0,0.00012348,2]
[352608928,1739196646672,-500.0,0.00012348,2]
[352608929,1739196646683,-1011.94639576,0.00012353,2]
[352608930,1739196646692,-254.9811215,0.00012365,2]
[352608931,1739196646702,-585.23,0.00012465,2]
[352608932,1739196646711,-582.26,0.00012465,2]
[352608933,1739196646720,-500.0,0.00012465,2]
[352608934,1739196646730,-613.39278937,0.00012465,2]
[352608935,1739196646740,-682.54,0.00012465,2]
[352608936,1739196646749,-500.0,0.00012465,2]
[352608937,1739196646759,-508.22,0.00012465,2]
[352608938,1739196646769,-500.0,0.00012465,2]
[352608939,1739196646778,-500.0,0.00012465,2]
[352608940,1739196646787,-229.49822142,0.00012465,2]
[352608941,1739196646797,-500.0,0.00012465,2]
[352608942,1739196646807,-11703.93,0.00012465,2]
[352608943,1739196646816,-711.7,0.00012465,2]
[352608944,1739196646825,-556.41,0.00012465,2]
[352608945,1739196646835,-500.0,0.00012465,2]
[352608946,1739196646844,-500.0,0.00012465,2]
[352608947,1739196646854,-1065.28,0.00012465,2]
[352608948,1739196646864,-4941.04,0.00012465,2]
[352608949,1739196646874,-560.29,0.00012465,2]
[352608950,1739196646883,-500.0,0.00012465,2]
[352608951,1739196646893,-1829.09,0.00012465,2]
[352608952,1739196646902,-500.0,0.00012465,2]
[352608953,1739196646912,-500.0,0.00012465,2]
[352608954,1739196646921,-500.0,0.00012465,2]
[352608955,1739196646931,-503.07,0.00012465,2]
[352608956,1739196646941,-500.0,0.00012465,2]
[352608957,1739196646951,-2461.35,0.00012465,2]
[352608958,1739196646961,-1052.97,0.00012465,2]
[352608959,1739196646971,-500.0,0.00012465,2]
[352608960,1739196646980,-1295.12,0.00012465,2]
[352608961,1739196646989,-500.0,0.00012465,2]
[352608962,1739196647000,-500.0,0.00012465,2]
[352608963,1739196647011,-1187.4,0.00012465,2]
[352608964,1739196647021,-590.74,0.00012465,2]
[352608965,1739196647031,-500.0,0.00012465,2]
[352608966,1739196647042,-1398.28,0.00012465,2]
[352608967,1739196647053,-500.0,0.00012465,2]
[352608968,1739196647063,-500.0,0.00012465,2]
[352608969,1739196647073,-1030.08,0.00012465,2]
[352608970,1739196647083,-5594.46,0.00012465,2]
[352608971,1739196647092,-551.54,0.00012465,2]
[352608972,1739196647102,-663.83,0.00012465,2]
[352608973,1739196647112,-1381.6,0.00012465,2]
[352608974,1739196647123,-2401.0,0.00012465,2]
[352608975,1739196647133,-500.0,0.00012465,2]
[352608976,1739196647143,-129.25079781,0.00012494,2]
[352608977,1739196647158,-289.81970212,0.00012494,2]
[352608978,1739196647168,-338.831,0.000126,2]
[352608979,1739196647179,-585.23,0.00012602,2]
[352608980,1739196647189,-582.26,0.00012602,2]
[352608981,1739196647199,-500.0,0.00012602,2]
[352608982,1739196647209,-682.54,0.00012602,2]
[352608983,1739196647219,-500.0,0.00012602,2]
[352608984,1739196647228,-508.22,0.00012602,2]
[352608985,1739196647238,-500.0,0.00012602,2]
[352608986,1739196647247,-500.0,0.00012602,2]
[352608987,1739196647257,-151.0,0.00012602,2]
[352608988,1739196647266,-151.0,0.00012602,2]
[352608989,1739196647276,-151.0,0.00012602,2]
[352608990,1739196647285,-500.0,0.00012602,2]
[352608991,1739196647295,-11703.93,0.00012602,2]
[352608992,1739196647304,-151.0,0.00012602,2]
[352608993,1739196647313,-711.7,0.00012602,2]
[352608994,1739196647322,-151.0,0.00012602,2]
[352608995,1739196647332,-556.41,0.00012602,2]
[352608996,1739196647341,-151.0,0.00012602,2]
[352608997,1739196647350,-500.0,0.00012602,2]
[352608998,1739196647359,-500.0,0.00012602,2]
[352608999,1739196647368,-313.07147,0.00012602,2]
[352609000,1739196647378,-1065.28,0.00012602,2]
[352609001,1739196647387,-313.07147,0.00012602,2]
[352609002,1739196647397,-298.112178,0.00012602,2]
[352609003,1739196647406,-2766.09066925,0.00012602,2]
[352609004,1739196647418,-2174.94933075,0.00012602,2]
[352609005,1739196647428,-298.112178,0.00012602,2]
[352609006,1739196647438,-560.29,0.00012602,2]
[352609007,1739196647447,-500.0,0.00012602,2]
[352609008,1739196647456,-1829.09,0.00012602,2]
[352609009,1739196647466,-195.86907979,0.00012602,2]
[352609010,1739196647476,-500.0,0.00012602,2]
[352609011,1739196647486,-151.0,0.00012602,2]
[352609012,1739196647495,-500.0,0.00012602,2]
[352609013,1739196647507,-503.07,0.00012602,2]
[352609014,1739196647520,-151.0,0.00012602,2]
[352609015,1739196647534,-151.0,0.00012602,2]
[352609016,1739196647547,-151.204309,0.00012602,2]
[352609017,1739196647558,-151.0,0.00012602,2]
[352609018,1739196647570,-500.0,0.00012602,2]
[352609019,1739196647583,-2461.35,0.00012602,2]
[352609020,1739196647596,-1052.97,0.00012602,2]
[352609021,1739196647609,-151.0,0.00012602,2]
[352609022,1739196647623,-500.0,0.00012602,2]
[352609023,1739196647635,-434.623431,0.00012602,2]
[352609024,1739196647649,-1295.12,0.00012602,2]
[352609025,1739196647663,-500.0,0.00012602,2]
[352609026,1739196647675,-434.623431,0.00012602,2]
[352609027,1739196647687,-500.0,0.00012602,2]
[352609028,1739196647700,-1187.4,0.00012602,2]
[352609029,1739196647711,-590.74,0.00012602,2]
[352609030,1739196647724,-151.0,0.00012602,2]
[352609031,1739196647739,-151.38,0.00012602,2]
[352609032,1739196647752,-1398.28,0.00012602,2]
[352609033,1739196647765,-500.0,0.00012602,2]
[352609034,1739196647776,-500.0,0.00012602,2]
[352609035,1739196647788,-1030.08,0.00012602,2]
[352609036,1739196647799,-5054.35031939,0.00012602,2]
[352609037,1739196647815,-540.10968061,0.00012602,2]
[352609038,1739196647828,-551.54,0.00012602,2]
[352609039,1739196647843,-663.83,0.00012602,2]
[352609040,1739196647856,-1381.6,0.00012602,2]
[352609041,1739196647870,-371.386346,0.00012602,2]
[352609042,1739196647885,-371.386346,0.00012602,2]
[352609043,1739196647900,-134.30149101,0.00012602,2]
[352609044,1739196648097,-500.0,0.00010958,2]
[352609045,1739196648110,-235.605,0.00011643,2]
[352609046,1739196648133,-359.50100004,0.00011643,2]
[352609047,1739196648423,-253.74119999,0.00011095,2]
[352609048,1739196648440,-246.25880001,0.00011095,2]
[352609049,1739196648451,-500.0,0.00011232,2]
[352609050,1739196648462,-500.0,0.00011369,2]
[352609051,1739196648472,-500.0,0.00011506,2]
[352609052,1739196648482,-35.53399996,0.00011643,2]
[352609053,1739196648493,-320.82,0.00011643,2]
[352609054,1739196648504,-612.38720553,0.0001178,2]
[352609055,1739196648704,-1984.64,0.00010958,2]
[352609056,1739196648715,-1984.64,0.00011095,2]
[352609057,1739196648917,-1984.64,0.00011232,2]
[352609058,1739196648932,-1443.12597936,0.00011369,2]
[352609063,1739197085367,20000.0,0.00014,30]
[352609065,1739197543134,-424.2582052,9.895e-05,2]
[352609066,1739197543155,-89.79860121,0.00010061,2]
[352609070,1739197626098,-297.27663771,9.96e-05,2]
[352609071,1739197635082,-1209.47250115,9.96e-05,2]
[352609072,1739197635103,-162.0,0.0001,2]
[352609073,1739197635125,-2591.0212785,0.00010061,2]
[352609074,1739197636139,-2319.18012029,0.00010061,2]
[352609075,1739197636160,-345.10546044,0.00010063,2]
[352609076,1739197636182,-317.2185176,0.00010266,2]
[352609077,1739197636203,-400.0,0.00010685,2]
[352609078,1739197636226,-300.0,0.00010856,2]
[352609079,1739197636250,-4227.04727527,0.00010857,2]
[352609080,1739197636275,-3766.64210443,0.00010935,2]
[352609081,1739197642098,-3672.05542835,0.00010935,2]
[352609082,1739197642119,-2914.15863204,0.00010944,2]
[352609125,1739197832743,-695.1323495,9.96e-05,2]
[352609127,1739197832753,-7438.69753278,0.00010942,2]
[352609129,1739197832762,-300.0,0.00010943,2]
[352609131,1739197832771,-1511.89196906,0.00010944,2]
[352609134,1739197832783,-399.28676596,0.00010944,2]
[352609136,1739197832793,-301.67760062,0.00010951,2]
[352609138,1739197832803,-500.0,0.00010957,2]
[352609140,1739197832813,-500.0,0.00010957,2]
[352609142,1739197832822,-500.0,0.00010957,2]
[352609144,1739197832831,-425.5476581,0.00010957,2]
[352609146,1739197832841,-518.99719017,0.00010957,2]
[352609148,1739197832851,-414.34723486,0.00010958,2]
[352609150,1739197832860,-500.0,0.00010958,2]
[352609152,1739197832870,-501.79114185,0.00010958,2]
[352609154,1739197832879,-480.71573263,0.00010958,2]
[352609156,1739197832889,-500.0,0.00010958,2]
[352609158,1739197832898,-322.02834627,0.00010958,2]
[352609160,1739197832907,-500.0,0.00010958,2]
[352609162,1739197832920,-500.0,0.00010958,2]
[352609164,1739197832929,-500.0,0.00010958,2]
[352609166,1739197832939,-500.0,0.00010958,2]
[352609168,1739197832948,-500.0,0.00010958,2]
[352609170,1739197832957,-500.73546012,0.00010958,2]
[352609173,1739197832966,-541.13220611,0.00010958,2]
[352609176,1739197832976,-508.53894772,0.00010958,2]
[352609178,1739197832985,-501.1766857,0.00010958,2]
[352609179,1739197832994,-500.0,0.00010958,2]
[352609180,1739197833003,-500.0,0.00010958,2]
[352609181,1739197833013,-500.0,0.00010958,2]
[352609182,1739197833024,-500.0,0.00010958,2]
[352609183,1739197833035,-500.0,0.00010958,2]
[352609184,1739197833046,-500.0,0.00010958,2]
[352609185,1739197833056,-500.0,0.00010958,2]
[352609186,1739197833067,-500.0,0.00010958,2]
[352609187,1739197833077,-500.0,0.00010958,2]
[352609188,1739197833087,-500.0,0.00010958,2]
[352609189,1739197833098,-500.0,0.00010958,2]
[352609190,1739197833108,-500.0,0.00010958,2]
[352609191,1739197833118,-500.0,0.00010958,2]
[352609192,1739197833129,-500.0,0.00010958,2]
[352609193,1739197833140,-157.36397208,0.00010958,2]
[352609194,1739197833150,-556.94651755,0.00010958,2]
[352609195,1739197833163,-500.0,0.00010958,2]
[352609196,1739197833174,-500.0,0.00010958,2]
[352609197,1739197833183,-500.0,0.00010958,2]
[352609198,1739197833194,-500.0,0.00010958,2]
[352609199,1739197833205,-500.0,0.00010958,2]
[352609200,1739197833215,-500.0,0.00010958,2]
[352609201,1739197833225,-500.0,0.00010958,2]
[352609202,1739197833235,-500.0,0.00010958,2]
[352609203,1739197833245,-500.0,0.00010958,2]
[352609204,1739197833255,-500.0,0.00010958,2]
[352609205,1739197833265,-500.0,0.00010958,2]
[352609206,1739197833275,-500.0,0.00010958,2]
[352609207,1739197833413,-500.0,0.00010958,2]
[352609208,1739197833424,-500.0,0.00010958,2]
[352609209,1739197833435,-271.38286363,0.00010958,2]
[352609210,1739197833446,-500.0,0.00010958,2]
[352609211,1739197833456,-500.0,0.00010958,2]
[352609212,1739197833467,-539.27747744,0.00010958,2]
[352609213,1739197833476,-500.0,0.00010958,2]
[352609214,1739197833487,-500.0,0.00010958,2]
[352609215,1739197833497,-500.0,0.00010958,2]
[352609216,1739197833508,-500.0,0.00010958,2]
[352609217,1739197833518,-500.0,0.00010958,2]
[352609218,1739197833528,-500.0,0.00010958,2]
[352609219,1739197833538,-500.57867955,0.00010958,2]
[352609220,1739197833548,-500.0,0.00010958,2]
[352609221,1739197833558,-500.0,0.00010958,2]
[352609222,1739197833568,-623.02576731,0.00010958,2]
[352609223,1739197833578,-501.10830904,0.00010958,2]
[352609224,1739197833588,-514.27503074,0.00010958,2]
[352609225,1739197833598,-500.0,0.00010958,2]
[352609226,1739197833607,-500.0,0.00010958,2]
[352609227,1739197833617,-500.0,0.00010958,2]
[352609228,1739197833627,-516.45699356,0.00010958,2]
[352609229,1739197833637,-500.0,0.00010958,2]
[352609230,1739197833646,-500.0,0.00010958,2]
[352609231,1739197833655,-500.0,0.00010958,2]
[352609232,1739197833666,-500.0,0.00010958,2]
[352609233,1739197833676,-500.0,0.00010958,2]
[352609234,1739197833686,-500.0,0.00010958,2]
[352609235,1739197833696,-500.0,0.00010958,2]
[352609236,1739197833706,-500.0,0.00010958,2]
[352609237,1739197833715,-500.0,0.00010958,2]
[352609238,1739197833725,-500.0,0.00010958,2]
[352609239,1739197833735,-526.53405721,0.00010958,2]
[352609240,1739197833743,-500.0,0.00010958,2]
[352609241,1739197833753,-599.21,0.00010958,2]
[352609242,1739197833762,-500.0,0.00010958,2]
[352609243,1739197833772,-500.0,0.00010958,2]
[352609244,1739197833782,-500.0,0.00010958,2]
[352609245,1739197833791,-500.0,0.00010958,2]
[352609246,1739197833801,-612.77,0.00010958,2]
[352609247,1739197833811,-500.0,0.00010958,2]
[352609248,1739197833820,-500.0,0.00010958,2]
[352609249,1739197833830,-500.0,0.00010958,2]
[352609250,1739197833840,-500.0,0.00010958,2]
[352609251,1739197833850,-500.0,0.00010958,2]
[352609252,1739197833860,-382.041907,0.00010958,2]
[352609253,1739197833869,-500.0,0.00010958,2]
[352609254,1739197833879,-500.0,0.00010958,2]
[352609255,1739197833889,-500.0,0.00010958,2]
[352609256,1739197833899,-500.0,0.00010958,2]
[352609257,1739197833908,-500.0,0.00010958,2]
[352609258,1739197833922,-500.0,0.00010958,2]
[352609259,1739197833931,-500.0,0.00010958,2]
[352609260,1739197833941,-500.0,0.00010958,2]
[352609261,1739197833952,-500.0,0.00010958,2]
[352609262,1739197833961,-155.55697632,0.00010958,2]
[352609263,1739197833971,-209.709451,0.00010958,2]
[352609264,1739197833981,-541.53868586,0.00010958,2]
[352609265,1739197833991,-500.0,0.00010958,2]
[352609266,1739197834001,-500.0,0.00010958,2]
[352609267,1739197834011,-500.0,0.00010958,2]
[352609268,1739197834021,-501.12498509,0.00010958,2]
[352609269,1739197834030,-500.0,0.00010958,2]
[352609270,1739197834040,-500.0,0.00010958,2]
[352609271,1739197834050,-500.0,0.00010958,2]
[352609272,1739197834060,-500.0,0.00010958,2]
[352609273,1739197834070,-500.0,0.00010958,2]
[352609274,1739197834080,-500.0,0.00010958,2]
[352609275,1739197834090,-275.46039503,0.00010958,2]
[352609276,1739197834099,-500.0,0.00010958,2]
[352609277,1739197834109,-500.0,0.00010958,2]
[352609278,1739197834119,-522.02,0.00010958,2]
[352609279,1739197834129,-444.53720727,0.00010958,2]
[352609280,1739197834139,-506.90742783,0.00010958,2]
[352609281,1739197834150,-500.0,0.00010958,2]
[352609282,1739197834162,-500.0,0.00010958,2]
[352609283,1739197834172,-500.0,0.00010958,2]
[352609284,1739197834182,-500.0,0.00010958,2]
[352609285,1739197834192,-500.0,0.00010958,2]
[352609286,1739197834202,-500.0,0.00010958,2]
[352609287,1739197834212,-500.0,0.00010958,2]
[352609288,1739197834222,-500.0,0.00010958,2]
[352609289,1739197834233,-500.0,0.00010958,2]
[352609290,1739197834242,-501.01885771,0.00010958,2]
[352609291,1739197834253,-509.97871439,0.00010958,2]
[352609292,1739197834262,-737.46,0.00010958,2]
[352609293,1739197834272,-500.0,0.00010958,2]
[352609294,1739197834283,-500.0,0.00010958,2]
[352609295,1739197834292,-500.0,0.00010958,2]
[352609296,1739197834303,-500.0,0.00010958,2]
[352609297,1739197834313,-500.0,0.00010958,2]
[352609298,1739197834325,-534.05866951,0.00010958,2]
[352609299,1739197834335,-503.10080961,0.00010958,2]
[352609300,1739197834344,-500.0,0.00010958,2]
[352609301,1739197834354,-500.0,0.00010958,2]
[352609302,1739197834364,-500.0,0.00010958,2]
[352609303,1739197834373,-500.0,0.00010958,2]
[352609304,1739197834383,-500.0,0.00010958,2]
[352609305,1739197834392,-500.0,0.00010958,2]
[352609306,1739197834403,-243.74158017,0.00010958,2]
[352609307,1739197834620,-500.0,0.00010958,2]
[352609308,1739197834630,-500.0,0.00010958,2]
[352609309,1739197834640,-500.0,0.00010958,2]
[352609310,1739197834650,-500.0,0.00010958,2]
[352609311,1739197834663,-500.0,0.00010958,2]
[352609312,1739197834674,-500.0,0.00010958,2]
[352609313,1739197834684,-500.0,0.00010958,2]
[352609314,1739197834694,-500.0,0.00010958,2]
[352609315,1739197834703,-500.0,0.00010958,2]
[352609316,1739197834713,-502.48767695,0.00010958,2]
[352609317,1739197834723,-500.0,0.00010958,2]
[352609318,1739197834732,-424.0897753,0.00010958,2]
[352609319,1739197834741,-500.0,0.00010958,2]
[352609320,1739197834750,-500.0,0.00010958,2]
[352609321,1739197834760,-500.0,0.00010958,2]
[352609322,1739197834769,-232.82944498,0.00010958,2]
[352609323,1739197834778,-500.0,0.00010958,2]
[352609324,1739197834787,-500.0,0.00010958,2]
[352609325,1739197834797,-500.0,0.00010958,2]
[352609326,1739197834807,-553.76790137,0.00010958,2]
[352609327,1739197834816,-500.0,0.00010958,2]
[352609328,1739197834825,-500.0,0.00010958,2]
[352609329,1739197834835,-500.0,0.00010958,2]
[352609330,1739197834844,-500.0,0.00010958,2]
[352609331,1739197834853,-500.0,0.00010958,2]
[352609332,1739197834862,-508.1595289,0.00010958,2]
[352609333,1739197834871,-500.0,0.00010958,2]
[352609334,1739197834880,-500.0,0.00010958,2]
[352609335,1739197834890,-500.0,0.00010958,2]
[352609336,1739197834900,-500.0,0.00010958,2]
[352609337,1739197834909,-596.08398438,0.00010958,2]
[352609338,1739197834923,-500.0,0.00010958,2]
[352609339,1739197834932,-500.0,0.00010958,2]
[352609340,1739197834942,-500.0,0.00010958,2]
[352609341,1739197834952,-500.0,0.00010958,2]
[352609342,1739197834962,-500.0,0.00010958,2]
[352609343,1739197834972,-500.0,0.00010958,2]
[352609344,1739197834981,-262.21998038,0.00010958,2]
[352609345,1739197834991,-500.0,0.00010958,2]
[352609346,1739197835000,-517.53111765,0.00010958,2]
[352609347,1739197835010,-500.0,0.00010958,2]
[352609348,1739197835020,-500.0,0.00010958,2]
[352609349,1739197835030,-500.0,0.00010958,2]
[352609350,1739197835041,-500.0,0.00010958,2]
[352609351,1739197835050,-500.0,0.00010958,2]
[352609352,1739197835060,-500.0,0.00010958,2]
[352609353,1739197835070,-500.0,0.00010958,2]
[352609354,1739197835080,-500.0,0.00010958,2]
[352609355,1739197835089,-500.0,0.00010958,2]
[352609356,1739197835099,-500.0,0.00010958,2]
[352609357,1739197835108,-500.0,0.00010958,2]
[352609358,1739197835117,-500.0,0.00010958,2]
[352609359,1739197835129,-500.0,0.00010958,2]
[352609360,1739197835139,-500.0,0.00010958,2]
[352609361,1739197835149,-500.0,0.00010958,2]
[352609362,1739197835159,-500.0,0.00010958,2]
[352609363,1739197835171,-500.0,0.00010958,2]
[352609364,1739197835181,-500.0,0.00010958,2]
[352609365,1739197835190,-500.0,0.00010958,2]
[352609366,1739197835199,-193.65982697,0.00010958,2]
[352609367,1739197835208,-500.0,0.00010958,2]
[352609368,1739197835219,-500.0,0.00010958,2]
[352609369,1739197835229,-501.14547502,0.00010958,2]
[352609370,1739197835239,-586.46444235,0.00010958,2]
[352609371,1739197835249,-500.0,0.00010958,2]
[352609372,1739197835259,-500.0,0.00010958,2]
[352609373,1739197835268,-500.0,0.00010958,2]
[352609374,1739197835278,-500.0,0.00010958,2]
[352609375,1739197835287,-500.0,0.00010958,2]
[352609376,1739197835296,-506.19487016,0.00010958,2]
[352609377,1739197835306,-500.0,0.00010958,2]
[352609378,1739197835316,-501.26461619,0.00010958,2]
[352609379,1739197835326,-500.0,0.00010958,2]
[352609380,1739197835338,-500.0,0.00010958,2]
[352609381,1739197835348,-500.0,0.00010958,2]
[352609382,1739197835358,-500.0,0.00010958,2]
[352609383,1739197835368,-500.0,0.00010958,2]
[352609384,1739197835379,-500.0,0.00010958,2]
[352609385,1739197835389,-500.0,0.00010958,2]
[352609386,1739197835398,-389.98335779,0.00010958,2]
[352609387,1739197835409,-500.0,0.00010958,2]
[352609388,1739197835420,-500.0,0.00010958,2]
[352609389,1739197835429,-500.0,0.00010958,2]
[352609390,1739197835439,-500.0,0.00010958,2]
[352609391,1739197835450,-663.13,0.00010958,2]
[352609392,1739197835460,-500.0,0.00010958,2]
[352609393,1739197835469,-502.01677473,0.00010958,2]
[352609394,1739197835479,-500.0,0.00010958,2]
[352609395,1739197835489,-500.0,0.00010958,2]
[352609396,1739197835499,-500.0,0.00010958,2]
[352609397,1739197835508,-600.05,0.00010958,2]
[352609398,1739197835519,-500.0,0.00010958,2]
[352609399,1739197835530,-500.0,0.00010958,2]
[352609400,1739197835540,-501.37526044,0.00010958,2]
[352609401,1739197835550,-15451.01,0.00010958,2]
[352609402,1739197835560,-500.0,0.00010958,2]
[352609403,1739197835569,-2370.78,0.00010958,2]
[352609404,1739197835579,-500.0,0.00010958,2]
[352609405,1739197835589,-500.0,0.00010958,2]
[352609406,1739197835598,-500.0,0.00010958,2]
[352609407,1739197835607,-500.0,0.00010958,2]
[352609408,1739197835617,-500.0,0.00010958,2]
[352609409,1739197835626,-832.64,0.00010958,2]
[352609410,1739197835635,-500.0,0.00010958,2]
[352609411,1739197835645,-506.31426783,0.00010958,2]
[352609412,1739197835655,-500.0,0.00010958,2]
[352609413,1739197835667,-500.0,0.00010958,2]
[352609414,1739197835676,-500.0,0.00010958,2]
[352609415,1739197835686,-500.0,0.00010958,2]
[352609416,1739197835695,-500.0,0.00010958,2]
[352609417,1739197835704,-500.0,0.00010958,2]
[352609418,1739197835714,-500.0,0.00010958,2]
[352609419,1739197835723,-500.0,0.00010958,2]
[352609420,1739197835733,-500.0,0.00010958,2]
[352609421,1739197835743,-500.0,0.00010958,2]
[352609422,1739197835752,-500.0,0.00010958,2]
[352609423,1739197835762,-500.0,0.00010958,2]
[352609424,1739197835772,-500.0,0.00010958,2]
[352609425,1739197835782,-500.0,0.00010958,2]
[352609426,1739197835792,-500.0,0.00010958,2]
[352609427,1739197835802,-455.59426665,0.00010958,2]
[352609428,1739197835811,-500.0,0.00010958,2]
[352609429,1739197835821,-1555.16,0.00010958,2]
[352609430,1739197835831,-6604.89,0.00010958,2]
[352609431,1739197835841,-500.0,0.00010958,2]
[352609432,1739197835851,-500.0,0.00010958,2]
[352609433,1739197835861,-500.0,0.00010958,2]
[352609434,1739197835870,-500.0,0.00010958,2]
[352609435,1739197835880,-500.0,0.00010958,2]
[352609436,1739197835889,-558.35,0.00010958,2]
[352609437,1739197835899,-500.0,0.00010958,2]
[352609438,1739197835908,-626.11969059,0.00010958,2]
[352609439,1739197835920,-756.91,0.00010958,2]
[352609440,1739197835930,-500.0,0.00010958,2]